bitfinex/quotes_ETHUSD_20250519
["timestamp","ask_amount","ask_price","bid_price","bid_amount"]
[1747628114127,4.1673476,2399.7,2399.1,9.73]
[1747628114323,0.833,2399.8,2399.1,10.0497294]
[1747628114660,6.05355251,2399.8,2399.2,9.73]
[1747628114967,4.16765152,2399.5,2399.2,9.73]
[1747628115375,1.8865,2399.8,2399.0,0.7913]
[1747628115376,4.16822975,2399.1,2399.0,0.7913]
[1747628115576,4.16805601,2399.2,2398.9,9.73]
[1747628115860,4.16848564,2399.0,2398.7,28.5153]
[1747628116244,4.16850757,2399.0,2398.7,17.994]
[1747628116462,4.16809017,2399.2,2398.7,27.725]
[1747628116782,4.16899602,2398.7,2398.4,0.7913]
[1747628117173,4.16883558,2398.8,2398.4,0.7913]
[1747628117383,4.16845434,2399.0,2398.4,0.7913]
[1747628117532,9.684,2399.1,2398.6,4.16909062]
[1747628117727,9.731,2399.7,2398.7,4.16878303]
[1747628117728,0.7506,2399.7,2398.7,4.16878303]
[1747628118048,4.16801301,2399.3,2398.8,9.731]
[1747628118248,4.16850627,2399.0,2398.5,0.55]
[1747628118452,4.16850627,2399.0,2398.6,9.731]
[1747628118651,4.16890078,2398.8,2398.6,9.732]
[1747628118879,4.16886598,2398.8,2398.6,9.732]
[1747628119682,4.16852941,2399.0,2398.6,9.732]
[1747628120181,4.16859597,2398.9,2398.6,9.732]
[1747628120349,4.16874166,2398.9,2398.6,9.732]
[1747628120683,4.16857726,2398.9,2398.6,9.732]
[1747628120983,4.16927246,2398.5,2398.4,9.732]
[1747628121273,4.17031569,2397.9,2397.8,0.8236]
[1747628121478,4.16979401,2398.2,2397.8,9.732]
[1747628121640,4.16932716,2398.5,2397.8,13.90233207]
[1747628121979,9.654,2398.6,2397.9,0.7749]
[1747628122163,4.16952325,2398.4,2397.9,0.7749]
[1747628122365,4.9732349,2399.5,2398.1,0.55]
[1747628122552,10.17432349,2399.4,2398.6,4.16905302]
[1747628122759,10.17432349,2399.4,2398.2,19.48917443]
[1747628122760,4.16829205,2399.1,2398.7,9.733]
[1747628122964,4.16829205,2399.1,2398.8,9.733]
[1747628122965,4.16852667,2399.0,2398.8,9.733]
[1747628123169,4.1684035,2399.0,2398.9,9.733]
[1747628123344,4.16860122,2398.9,2398.5,0.7749]
[1747628123545,4.16879035,2398.8,2398.5,0.7749]
[1747628123742,4.16860122,2398.9,2398.6,9.733]
[1747628124001,4.16885044,2398.8,2398.6,9.733]
[1747628124296,0.49732349,2399.4,2398.6,9.733]
[1747628124446,4.1681785,2399.2,2398.6,10.7063]
[1747628124778,4.16849493,2399.0,2398.7,9.733]
[1747628124948,4.16777408,2399.4,2398.8,0.7856]
[1747628125148,4.1678832,2399.3,2398.8,4.95427345]
[1747628125378,4.16778195,2399.4,2398.8,4.95427345]
[1747628125579,4.16820033,2399.2,2398.8,0.7856]
[1747628126279,4.16824383,2399.1,2398.9,9.733]
[1747628126483,4.16813831,2399.2,2399.0,9.733]
[1747628126784,10.4707,2399.5,2399.0,9.733]
[1747628126785,4.16781543,2399.4,2399.0,9.733]
[1747628127085,4.16744842,2399.6,2399.1,4.16820429]
[1747628127287,10.07,2400.0,2399.1,4.16820429]
[1747628127288,4.16633047,2400.2,2399.7,4.16717175]
[1747628127586,4.16642494,2400.2,2399.6,4.16729791]
[1747628127787,4.16665051,2400.1,2399.7,9.733]
[1747628127955,4.16579879,2400.5,2399.8,4.1669086]
[1747628128156,1.38467988,2400.4,2399.8,4.1669086]
[1747628128358,5.55068907,2400.4,2399.9,0.25827677]
[1747628128786,4.16600919,2400.4,2400.0,9.733]
[1747628129087,4.16600919,2400.4,2400.0,27.731]
[1747628129587,4.16649306,2400.1,2400.0,17.998]
[1747628129798,4.16649306,2400.1,2400.0,27.731]
[1747628130675,4.16649306,2400.1,2400.0,27.73]
[1747628130866,4.1662086,2400.3,2400.0,27.73]
[1747628131056,4.16649306,2400.1,2400.0,27.73]
[1747628131256,4.16649306,2400.1,2400.0,17.998]
[1747628131467,0.41662086,2400.2,2400.0,27.73]
[1747628131671,13.8047295,2400.6,2400.0,27.73]
[1747628131990,4.16649306,2400.1,2400.0,27.73]
[1747628132197,4.92719306,2400.1,2400.0,17.998]
[1747628132370,4.96918411,2400.1,2400.0,17.998]
[1747628132571,10.3737,2400.1,2399.8,9.732]
[1747628132767,4.16642038,2400.2,2399.8,9.732]
[1747628132974,4.16605676,2400.4,2399.8,13.89891581]
[1747628133175,4.16571168,2400.6,2399.8,9.732]
[1747628133381,0.7607,2400.8,2400.0,4.16660235]
[1747628133561,4.16652513,2400.1,2399.9,0.8065]
[1747628133767,4.92603316,2400.8,2400.0,9.617]
[1747628133961,4.1664261,2400.2,2400.1,9.617]
[1747628134163,4.16609948,2400.4,2400.1,9.617]
[1747628135063,4.16580915,2400.5,2400.1,9.617]
[1747628135264,4.16590311,2400.5,2400.1,9.617]
[1747628135463,10.3727,2400.8,2400.2,17.995]
[1747628135698,4.165977,2400.4,2400.2,17.995]
[1747628135899,4.165977,2400.4,2400.3,9.617]
[1747628136098,4.16562526,2400.6,2400.3,9.617]
[1747628136302,0.7915,2401.1,2400.7,4.16543054]
[1747628136476,10.8615,2401.5,2400.8,10.4003]
[1747628136675,10.8615,2401.5,2401.0,0.55]
[1747628136676,4.16416432,2401.5,2401.0,0.55]
[1747628137007,0.7915,2401.9,2401.1,17.995]
[1747628137008,4.16366936,2401.8,2401.1,17.995]
[1747628137176,4.16359391,2401.8,2401.2,4.16458437]
[1747628137377,10.8747,2402.2,2401.4,0.7934]
[1747628137591,4.16406412,2401.5,2401.4,0.7934]
[1747628137764,4.16406412,2401.5,2401.4,9.616]
[1747628138603,4.163544,2401.8,2401.1,18.7884]
[1747628138904,4.16426796,2401.4,2401.2,9.616]
[1747628139070,4.16399369,2401.6,2401.2,9.616]
[1747628139274,4.16423752,2401.4,2401.1,18.7884]
[1747628139471,19.687,2402.2,2401.1,18.7884]
[1747628139472,4.16447115,2401.3,2401.1,18.7884]
[1747628139673,4.16458437,2401.2,2401.1,17.995]
[1747628139919,4.16458437,2401.2,2401.1,27.609]
[1747628140906,4.99748441,2401.2,2401.1,27.609]
[1747628141105,4.16458437,2401.2,2401.1,27.609]
[1747628141289,4.16441607,2401.3,2401.1,27.609]
[1747628141492,4.16458437,2401.2,2401.1,27.609]
[1747628141891,4.16458437,2401.2,2401.1,17.995]
[1747628142095,4.16458437,2401.2,2401.1,27.609]
[1747628142411,14.23224869,2402.6,2401.2,0.55]
[1747628142574,4.16423752,2401.4,2401.3,9.614]
[1747628142897,4.16408468,2401.5,2401.3,9.614]
[1747628143069,4.16423752,2401.4,2401.1,17.995]
[1747628143274,4.16457443,2401.3,2401.2,9.613]
[1747628143576,4.16458437,2401.2,2401.1,17.995]
[1747628143912,4.16447779,2401.3,2401.1,17.995]
[1747628144070,9.59,2401.9,2401.1,17.995]
[1747628144071,4.16409019,2401.5,2401.1,27.608]
[1747628144266,10.07,2402.0,2401.1,27.608]
[1747628144485,4.16401121,2401.6,2401.1,27.608]
[1747628144680,4.16426219,2401.4,2401.1,27.608]
[1747628144882,10.584,2401.9,2401.1,27.608]
[1747628144883,4.16458437,2401.2,2401.1,17.995]
[1747628145094,4.16458437,2401.2,2400.7,0.8016]
[1747628145095,0.04199105,2401.2,2400.7,0.8016]
[1747628145388,4.16475781,2401.1,2401.0,9.613]
[1747628145696,4.99769447,2401.1,2401.0,9.613]
[1747628145901,4.16562526,2400.6,2400.5,17.988]
[1747628146199,4.99770521,2401.1,2400.5,27.6]
[1747628146397,4.16502968,2401.0,2400.5,27.6]
[1747628146709,10.07,2401.4,2400.5,27.6]
[1747628146912,4.16467148,2401.2,2400.7,4.16541854]
[1747628147079,10.568,2401.9,2400.8,1.3305]
[1747628147272,4.164679,2401.2,2400.8,0.7805]
[1747628147476,4.163544,2401.8,2400.9,9.612]
[1747628147698,4.16484196,2401.1,2400.9,9.612]
[1747628147884,4.16447458,2401.3,2400.9,9.612]
[1747628147885,4.1646701,2401.2,2400.9,9.612]
[1747628148476,4.16403681,2401.6,2401.0,4.16489921]
[1747628148708,0.8252,2402.4,2401.4,0.55]
[1747628148874,0.8252,2402.4,2401.5,17.986]
[1747628149073,4.16389073,2401.6,2401.5,27.598]
[1747628149321,4.16302402,2402.1,2401.5,27.598]
[1747628149322,4.16378797,2401.7,2401.5,27.598]
[1747628149610,1.08952,2402.3,2401.5,27.598]
[1747628149611,4.16337066,2401.9,2401.5,27.598]
[1747628150818,4.16327083,2402.0,2401.5,31.76204701]
[1747628151020,4.16337149,2401.9,2401.5,27.598]
[1747628151704,4.16334099,2402.0,2401.5,27.598]
[1747628152098,4.16389073,2401.6,2401.5,17.986]
[1747628152414,4.16348047,2401.9,2401.5,27.596]
[1747628152581,4.1637279,2401.7,2401.5,27.596]
[1747628152778,4.16389073,2401.6,2401.5,17.986]
[1747628152995,4.16377612,2401.7,2401.5,27.596]
[1747628153207,4.16334621,2402.0,2401.5,27.596]
[1747628153409,10.61552,2402.3,2401.5,27.596]
[1747628153578,4.16321611,2402.0,2401.5,31.75998017]
[1747628153788,4.16338193,2401.9,2401.5,27.596]
[1747628153977,4.16320642,2402.0,2401.5,22.1500054]
[1747628154178,4.16308518,2402.1,2401.6,9.61]
[1747628154614,4.16322165,2402.0,2401.6,9.61]
[1747628155424,4.16278262,2402.3,2401.8,0.7918]
[1747628155634,4.16314442,2402.1,2401.8,0.7918]
[1747628155812,4.16319733,2402.0,2401.8,0.7918]
[1747628156010,9.525,2402.7,2401.9,9.61]
[1747628156011,4.16236392,2402.5,2401.9,9.61]
[1747628156226,4.16319733,2402.0,2401.9,9.61]
[1747628156829,4.16357951,2401.8,2401.5,28.2842]
[1747628156991,4.1637558,2401.7,2401.5,18.7592]
[1747628157191,4.1637731,2401.7,2401.6,9.61]
[1747628157391,6.74599387,2402.5,2401.6,13.77379594]
[1747628157599,4.16328727,2402.0,2401.6,9.61]
[1747628157937,4.16279455,2402.3,2401.7,4.16354595]
[1747628158093,9.524,2402.7,2401.6,13.77381978]
[1747628158293,4.16284717,2402.3,2401.7,14.3226213]
[1747628158491,4.16284717,2402.3,2401.8,0.25787035]
[1747628158492,4.16293057,2402.2,2401.8,0.25787035]
[1747628158715,4.16293057,2402.2,2401.9,9.609]
[1747628159135,4.16287847,2402.2,2401.9,9.609]
[1747628159390,4.16337066,2401.9,2401.8,0.25787035]
[1747628159519,5.04222002,2401.9,2401.8,0.25787035]
[1747628159834,5.00022897,2401.9,2401.8,0.25787035]
[1747628160195,4.16371736,2401.7,2401.6,9.609]
[1747628160606,4.16493127,2401.0,2400.9,0.32233555]
[1747628160832,4.5814244,2401.0,2400.9,0.32233555]
[1747628161048,4.62341545,2401.0,2400.9,0.32233555]
[1747628161255,4.5814244,2401.0,2400.9,0.32233555]
[1747628161450,5.41971545,2401.0,2400.9,0.32233555]
[1747628161756,5.3777244,2401.0,2400.9,0.32233555]
[1747628162707,5.41971545,2401.0,2400.9,0.32233555]
[1747628163033,5.3777244,2401.0,2400.9,0.32233555]
[1747628163232,4.96123127,2401.0,2400.9,0.32233555]
[1747628163614,5.00322232,2401.0,2400.9,0.32233555]
[1747628163804,5.00322232,2401.0,2400.5,9.525]
[1747628163805,4.16562526,2400.6,2400.5,9.525]
[1747628164335,4.16622726,2400.3,2400.1,0.7758]
[1747628164534,4.16666666,2400.0,2399.9,18.30333555]
[1747628164725,4.16614589,2400.3,2400.2,9.525]
[1747628164924,4.16666666,2400.0,2399.9,18.30333555]
[1747628165233,4.16654358,2400.1,2399.9,27.82833555]
[1747628165395,4.16654358,2400.1,2399.9,18.30333555]
[1747628165396,4.16666666,2400.0,2399.9,18.30333555]
[1747628165596,4.16666666,2400.0,2399.9,27.82833555]
[1747628166732,4.16654249,2400.1,2399.9,27.82833555]
[1747628166900,4.16639548,2400.2,2399.9,27.82833555]
[1747628167105,4.16649867,2400.1,2399.9,27.82833555]
[1747628167302,4.16666666,2400.0,2399.9,17.981]
[1747628167519,4.16666666,2400.0,2399.9,27.508]
[1747628167715,4.16666666,2400.0,2399.9,17.981]
[1747628168116,5.6157113,2400.4,2399.9,17.981]
[1747628168117,1.44972471,2400.4,2399.9,17.981]
[1747628168315,4.16666666,2400.0,2399.9,17.981]
[1747628169539,4.16545174,2400.7,2399.9,17.981]
[1747628169844,4.16659119,2400.1,2400.0,9.527]
[1747628170140,4.16666666,2400.0,2399.9,17.981]
[1747628170341,4.16666666,2400.0,2399.9,27.509]
[1747628170719,4.16666666,2400.0,2399.9,17.981]
[1747628172815,4.16656085,2400.1,2399.9,17.981]
[1747628173160,0.826,2400.6,2400.0,0.8087]
[1747628173452,4.16585759,2400.5,2400.0,1.34654927]
[1747628173653,14.51811853,2400.9,2400.0,5.51321445]
[1747628173859,4.16527824,2400.8,2400.2,4.16620348]
[1747628174157,4.16560664,2400.7,2400.3,9.528]
[1747628174453,4.16541077,2400.8,2400.3,9.528]
[1747628174660,4.16556993,2400.7,2400.3,9.528]
[1747628174879,23.76077396,2401.1,2400.0,1.34654927]
[1747628175164,0.86799105,2401.0,2400.1,9.528]
[1747628175321,4.16554429,2400.7,2400.2,4.16621174]
[1747628175523,0.826,2401.0,2400.1,9.528]
[1747628175737,4.2070958,2400.9,2399.9,17.981]
[1747628175966,4.1664213,2400.2,2400.0,9.528]
[1747628177528,4.16623651,2400.3,2400.0,9.528]
[1747628177724,4.16633638,2400.2,2400.0,9.528]
[1747628178028,4.16631947,2400.2,2400.1,9.528]
[1747628178475,4.16666666,2400.0,2399.9,17.981]
[1747628178761,4.16718756,2399.7,2399.6,9.528]
[1747628179841,9.525,2400.1,2399.3,0.7992]
[1747628180157,4.16718756,2399.7,2399.4,9.529]
[1747628180365,4.16743602,2399.6,2399.4,9.529]
[1747628180663,4.1675349,2399.5,2399.2,18.31233555]
[1747628180862,4.16743062,2399.6,2399.3,9.529]
[1747628181064,4.16701391,2399.8,2399.3,9.529]
[1747628181248,4.16745129,2399.6,2399.2,17.99]
[1747628181431,4.16731011,2399.7,2399.4,9.529]
[1747628181832,4.16721108,2399.7,2399.4,9.529]
[1747628182031,9.525,2400.0,2399.4,9.529]
[1747628182245,4.16713876,2399.8,2399.4,9.529]
[1747628182472,4.16724133,2399.7,2399.4,9.529]
[1747628182830,4.16684028,2399.9,2399.5,9.529]
[1747628183166,4.16718756,2399.7,2399.2,17.99]
[1747628183463,4.16770859,2399.4,2399.3,9.529]
[1747628183642,0.7821,2399.7,2399.3,9.529]
[1747628183840,4.16745872,2399.6,2399.3,9.529]
[1747628184043,0.7821,2400.4,2399.4,0.55]
[1747628184255,10.07,2400.6,2399.5,1.0079]
[1747628184470,10.07,2400.6,2399.9,4.16670591]
[1747628184471,4.16598937,2400.4,2399.9,4.16670591]
[1747628184769,4.16535773,2400.8,2400.2,4.16617401]
[1747628184947,10.8553,2401.1,2400.2,4.16617401]
[1747628184948,4.16555495,2400.7,2400.3,0.8275]
[1747628185139,4.16562718,2400.6,2400.2,17.993]
[1747628185350,0.83309088,2400.6,2400.2,17.993]
[1747628185556,4.1660771,2400.4,2400.2,17.993]
[1747628185759,4.16614589,2400.3,2400.2,17.993]
[1747628186338,4.16602402,2400.4,2400.2,17.993]
[1747628186579,4.16614589,2400.3,2400.2,17.993]
[1747628187265,8.0,2401.6,2400.2,22.15916985]
[1747628187579,4.16297483,2402.2,2400.6,4.16553756]
[1747628187580,4.16484268,2401.1,2400.6,4.16553756]
[1747628187745,10.3221,2401.4,2400.7,9.529]
[1747628187946,23.75815296,2401.5,2400.8,4.16518764]
[1747628188137,4.1643862,2401.4,2400.9,0.8159]
[1747628188337,4.16450634,2401.3,2400.9,0.8159]
[1747628188550,4.16522951,2400.9,2400.5,0.8159]
[1747628188767,4.16499987,2401.0,2400.6,9.529]
[1747628189276,4.16463608,2401.2,2400.6,13.69462391]
[1747628189439,4.16463608,2401.2,2400.6,11.45164532]
[1747628189758,4.96085785,2401.7,2400.9,4.16496452]
[1747628189958,4.16400222,2401.6,2401.1,0.789]
[1747628190162,10.07,2401.9,2401.1,0.789]
[1747628190163,4.16370187,2401.8,2401.2,13.69348873]
[1747628190361,4.16324357,2402.0,2401.3,4.1644059]
[1747628190565,4.1632187,2402.0,2401.4,4.16415773]
[1747628190763,4.16333624,2402.0,2401.4,4.16415773]
[1747628190963,4.16312757,2402.1,2401.6,0.789]
[1747628191179,4.16267633,2402.4,2401.7,9.528]
[1747628191361,14.44916666,2402.9,2401.9,4.16327148]
[1747628191539,4.16218508,2402.6,2401.9,4.16327148]
[1747628191735,4.16201818,2402.7,2402.2,0.7581]
[1747628191942,4.16180059,2402.9,2402.3,14.24057869]
[1747628192141,4.16203398,2402.7,2402.4,9.528]
[1747628192592,4.16267743,2402.3,2402.2,0.7581]
[1747628192759,4.16285072,2402.2,2401.8,9.521]
[1747628193079,4.16423752,2401.4,2401.3,9.521]
[1747628194306,0.8003,2402.0,2401.3,9.521]
[1747628194459,4.16398381,2401.6,2401.3,9.521]
[1747628194793,4.16406412,2401.5,2401.4,9.519]
[1747628195887,4.16389073,2401.6,2401.4,9.519]
[1747628196197,4.16426669,2401.4,2400.6,18.7632]
[1747628196490,4.16493127,2401.0,2400.9,9.519]
[1747628196994,4.98406015,2401.3,2400.9,9.519]
[1747628196995,4.16441094,2401.3,2400.9,9.519]
[1747628197292,4.16466067,2401.2,2400.9,9.519]
[1747628197595,4.16475781,2401.1,2400.6,18.7632]
[1747628197893,4.16510666,2400.9,2400.7,9.519]
[1747628198061,4.16510666,2400.9,2400.8,9.519]
[1747628198399,4.16470305,2401.2,2400.8,9.519]
[1747628198994,4.16510475,2400.9,2400.6,18.7632]
[1747628199162,13.68076303,2401.7,2400.6,17.99]
[1747628199163,4.16545174,2400.7,2400.6,17.99]
[1747628199364,1.35151552,2401.2,2400.6,27.509]
[1747628199564,9.517,2401.4,2400.6,27.509]
[1747628199778,5.6116436,2401.9,2400.6,27.509]
[1747628199779,10.96424495,2401.9,2400.9,0.8099]
[1747628199967,1.44824495,2401.9,2401.0,0.55]
[1747628200299,4.16407519,2401.5,2401.1,9.518]
[1747628200854,4.16424324,2401.4,2401.1,9.518]
[1747628201583,4.16389998,2401.6,2401.1,9.518]
[1747628201782,4.16426171,2401.4,2401.1,9.518]
[1747628201993,4.16389998,2401.6,2401.2,0.55]
[1747628202290,10.3192,2402.0,2400.9,0.8099]
[1747628202480,4.16439953,2401.4,2401.0,10.068]
[1747628202683,4.1635758,2401.8,2401.0,0.55]
[1747628202879,4.16424497,2401.4,2401.1,9.518]
[1747628203091,4.91950856,2403.5,2401.1,9.518]
[1747628203092,14.23281233,2402.3,2401.3,0.7854]
[1747628203316,15.02343497,2402.8,2401.6,0.55]
[1747628203514,10.8616,2402.8,2401.8,0.55]
[1747628203663,4.16250635,2402.4,2402.0,0.55]
[1747628203865,4.16146483,2403.0,2401.9,0.8291]
[1747628204078,4.16302402,2402.1,2402.0,9.518]
[1747628204643,10.2764,2402.5,2402.0,9.518]
[1747628204843,4.16302402,2402.1,2402.0,9.518]
[1747628205049,4.16268071,2402.3,2402.0,9.518]
[1747628205347,4.16245643,2402.5,2402.0,10.4698]
[1747628205523,4.16245643,2402.5,2402.1,0.809]
[1747628205894,4.16285072,2402.2,2401.7,18.792]
[1747628206096,11.72310648,2402.9,2401.8,9.517]
[1747628206300,4.16260699,2402.4,2401.8,13.68047526]
[1747628206489,4.16243625,2402.5,2402.0,0.55]
[1747628206694,4.16254132,2402.4,2402.0,10.063]
[1747628206954,4.16183388,2402.8,2402.1,9.517]
[1747628207121,4.16252711,2402.4,2402.1,9.517]
[1747628207317,4.16271711,2402.3,2402.1,9.517]
[1747628207524,4.16258722,2402.4,2402.1,9.517]
[1747628207904,4.16267743,2402.3,2402.2,9.517]
[1747628208769,4.16309284,2402.1,2401.7,19.10512796]
[1747628208926,4.16348489,2401.9,2401.8,9.515]
[1747628209265,9.51,2402.5,2401.8,9.515]
[1747628209423,4.16295022,2402.2,2401.8,9.515]
[1747628209763,4.16304318,2402.1,2401.8,9.515]
[1747628209963,4.1623309,2402.5,2401.8,9.515]
[1747628210145,13.67220683,2402.6,2401.8,9.515]
[1747628210463,4.16337623,2401.9,2401.7,17.983]
[1747628210667,9.51,2402.1,2401.5,9.515]
[1747628210813,4.16389073,2401.6,2401.5,9.515]
[1747628211322,4.16406412,2401.5,2401.1,0.32233555]
[1747628211515,4.16349216,2401.9,2401.2,9.55664149]
[1747628211720,4.163544,2401.8,2401.2,13.67950952]
[1747628211970,0.808,2402.2,2401.2,9.515]
[1747628212163,4.16305912,2402.1,2401.3,9.516]
[1747628212479,4.16408666,2401.5,2401.1,2.58350232]
[1747628212634,4.16441094,2401.3,2401.2,9.516]
[1747628212966,4.99706177,2401.4,2401.0,17.979]
[1747628212967,0.83279956,2401.4,2401.0,17.979]
[1747628213272,4.16475781,2401.1,2401.0,17.979]
[1747628214221,4.16493127,2401.0,2400.9,9.516]
[1747628216231,4.16527824,2400.8,2400.7,0.32233555]
[1747628216435,4.16527824,2400.8,2400.7,9.83833555]
[1747628216779,4.16551779,2400.7,2400.5,9.516]
[1747628217003,9.9244604,2401.1,2400.5,9.516]
[1747628217275,14.08925665,2401.1,2400.5,9.516]
[1747628217460,4.16576027,2400.6,2400.3,17.979]
[1747628217664,4.16552982,2400.7,2400.4,9.516]
[1747628218053,4.16565193,2400.6,2400.4,9.516]
[1747628218576,4.16597233,2400.4,2400.3,27.496]
[1747628220067,4.16631947,2400.2,2400.1,0.32233555]
[1747628220283,4.20831052,2400.2,2400.1,0.32233555]
[1747628220450,0.7811,2400.1,2399.4,19.11353555]
[1747628220660,4.1675349,2399.5,2399.4,18.30533555]
[1747628220974,4.16724345,2399.7,2399.5,9.517]
[1747628221143,4.16736122,2399.6,2399.5,9.517]
[1747628221352,4.9367349,2399.5,2399.4,0.32233555]
[1747628222100,14.4447349,2399.5,2399.4,0.32233555]
[1747628222248,0.7692,2399.5,2399.4,0.32233555]
[1747628222440,4.1675349,2399.5,2399.4,0.32233555]
[1747628223549,4.16785647,2399.4,2398.9,0.8122]
[1747628223868,4.16785647,2399.4,2398.9,2.29416123]
[1747628224492,0.04199105,2399.3,2398.9,0.8122]
[1747628224673,0.04199105,2399.3,2398.4,0.32233555]
[1747628224674,4.16822975,2399.1,2399.0,9.509]
[1747628224875,4.16836011,2399.1,2398.9,9.509]
[1747628225542,4.1684035,2399.0,2398.6,0.8122]
[1747628225740,4.16875104,2398.8,2398.4,9.83133555]
[1747628225980,4.16922742,2398.6,2398.4,9.83133555]
[1747628226162,4.16921652,2398.6,2398.4,9.83133555]
[1747628226365,4.16927246,2398.5,2398.4,9.83133555]
[1747628226682,4.16927246,2398.5,2398.4,9.512]
[1747628226879,4.16912881,2398.6,2398.4,9.512]
[1747628227179,4.16927246,2398.5,2398.4,9.512]
[1747628227875,4.16927246,2398.5,2398.3,9.512]
[1747628228077,4.16927246,2398.5,2398.0,0.7912]
[1747628228371,4.16979401,2398.2,2398.1,27.497]
[1747628228573,0.7909,2398.5,2398.1,27.497]
[1747628228774,10.48684035,2399.0,2398.1,27.497]
[1747628228775,10.07,2399.0,2398.3,0.7754]
[1747628229075,4.16863915,2398.9,2398.3,5.25784018]
[1747628229282,0.04199105,2398.8,2398.4,9.512]
[1747628229462,0.7909,2399.2,2398.4,9.512]
[1747628229679,4.16884942,2398.8,2398.4,9.512]
[1747628229884,0.7909,2399.2,2398.4,10.95771408]
[1747628230083,4.16828992,2399.1,2398.5,4.16923196]
[1747628230400,4.16815723,2399.2,2398.6,4.16897464]
[1747628230600,4.16829532,2399.1,2398.5,4.71923116]
[1747628230919,4.16840424,2399.0,2398.5,4.71923116]
[1747628231096,4.16843499,2399.0,2398.5,2.61219146]
[1747628231401,4.16871276,2398.9,2398.4,0.55]
[1747628231601,4.16903796,2398.7,2398.5,9.513]
[1747628231771,4.16909864,2398.6,2398.5,9.513]
[1747628232098,4.16927246,2398.5,2398.4,9.513]
[1747628232800,4.16944629,2398.4,2398.1,17.985]
[1747628233095,4.16944629,2398.4,2397.8,0.31905515]
[1747628233096,4.17024869,2398.0,2397.8,9.514]
[1747628233304,4.16993162,2398.2,2397.8,9.514]
[1747628233499,13.67855706,2398.4,2397.8,13.68447405]
[1747628233665,9.509,2398.4,2398.0,4.17011607]
[1747628233858,4.16899039,2398.7,2398.1,4.16995882]
[1747628234073,13.67784698,2398.8,2398.2,4.16967896]
[1747628234278,13.67776022,2398.8,2398.3,10.2847]
[1747628234819,4.1689619,2398.7,2398.3,10.2847]
[1747628234990,4.1691447,2398.6,2398.3,10.2847]
[1747628235390,4.1691447,2398.6,2398.4,9.514]
[1747628235624,9.509,2398.8,2398.4,9.514]
[1747628235822,0.7624,2399.5,2398.5,0.55]
[1747628236129,4.1684645,2399.0,2398.5,0.55]
[1747628236500,4.1686036,2398.9,2398.5,0.55]
[1747628237017,4.16854765,2399.0,2398.5,0.55]
[1747628237202,13.67691377,2399.3,2398.5,0.55]
[1747628237522,4.1688695,2398.8,2398.6,9.515]
[1747628237935,4.16864929,2398.9,2398.6,9.515]
[1747628238223,5.53576825,2399.2,2398.5,0.55]
[1747628238396,4.16810444,2399.2,2398.7,0.55]
[1747628238584,4.16770859,2399.4,2398.4,9.02847]
[1747628238786,0.7624,2399.5,2398.5,17.515]
[1747628238992,0.7624,2399.5,2398.3,18.7697]
[1747628239188,4.16770859,2399.4,2398.3,18.7697]
[1747628239429,4.16927246,2398.5,2398.3,18.7697]
[1747628239732,4.16897092,2398.7,2398.4,9.515]
[1747628239891,4.1691,2398.6,2398.4,9.515]
[1747628240087,4.16850575,2399.0,2398.3,18.7697]
[1747628240304,4.16996789,2398.1,2398.0,10.3153]
[1747628240624,4.16984161,2398.2,2398.0,10.3153]
[1747628240799,2.12675057,2398.9,2398.1,0.55]
[1747628241196,2.12675057,2398.9,2398.2,9.515]
[1747628241390,4.16955852,2398.4,2398.2,9.515]
[1747628241595,4.16934609,2398.5,2398.3,9.515]
[1747628241800,4.16919164,2398.6,2398.3,9.515]
[1747628241993,14.23796346,2399.3,2398.4,0.55]
[1747628242224,4.1687402,2398.9,2398.4,0.55]
[1747628242428,4.16824488,2399.1,2398.4,4.76111314]
[1747628242617,4.16859276,2398.9,2398.4,8.55]
[1747628242802,4.16895255,2398.7,2398.4,8.55]
[1747628243002,4.16893791,2398.7,2398.1,0.55]
[1747628243334,4.16955515,2398.4,2398.2,9.516]
[1747628243496,4.16935765,2398.5,2398.2,9.516]
[1747628243697,10.3169,2399.2,2398.3,0.55]
[1747628244031,4.16886724,2398.8,2398.3,0.55]
[1747628244223,4.16896072,2398.7,2398.3,0.55]
[1747628244416,4.16894973,2398.7,2398.2,8.55]
[1747628244624,4.16947738,2398.4,2398.2,0.55]
[1747628244836,4.16947738,2398.4,2398.3,10.066]
[1747628245007,4.16947738,2398.4,2398.3,0.55]
[1747628245211,4.16947738,2398.4,2398.3,10.066]
[1747628245613,4.16922453,2398.6,2398.3,10.066]
[1747628246432,4.16904489,2398.7,2398.3,11.0726]
[1747628246730,4.16938481,2398.5,2398.4,9.516]
[1747628246930,4.16944629,2398.4,2398.3,9.516]
[1747628247096,4.16972551,2398.3,2398.0,0.8003]
[1747628247297,4.16951774,2398.4,2398.1,9.516]
[1747628247500,4.16930732,2398.5,2398.1,9.516]
[1747628248003,4.1693692,2398.5,2398.2,0.55]
[1747628248538,4.1693692,2398.5,2398.4,0.55]
[1747628249245,4.16944629,2398.4,2398.3,0.26050726]
[1747628249545,4.1686338,2398.9,2398.3,0.26050726]
[1747628249744,4.16910784,2398.6,2398.4,0.55]
[1747628250217,4.16944629,2398.4,2398.3,0.26050726]
[1747628251351,4.16944629,2398.4,2398.3,0.58284281]
[1747628251644,4.21143734,2398.4,2398.3,0.58284281]
[1747628251937,4.16944629,2398.4,2398.3,0.58284281]
[1747628252148,5.11413985,2398.4,2398.3,0.58284281]
[1747628252445,5.11413985,2398.4,2398.3,0.32233555]
[1747628254159,4.17064951,2397.8,2397.7,0.26050726]
[1747628255015,4.17035935,2397.9,2397.7,0.26050726]
[1747628255217,4.17048961,2397.8,2397.7,0.26050726]
[1747628256116,4.17021116,2398.0,2397.7,0.26050726]
[1747628256341,4.17048961,2397.8,2397.7,0.26050726]